bitfinex/quotes_SOLUSD_20220210
["timestamp","ask_amount","ask_price","bid_price","bid_amount"]
[1644487137474,27.0796,113.36,113.31,13.2405]
[1644487138374,22.6696,113.36,113.31,52.73546918]
[1644487139075,4.41,113.37,113.31,52.73546918]
[1644487139273,4.41,113.37,113.31,60.66435918]
[1644487139473,4.41,113.37,113.32,12.46]
[1644487139675,1.26071954,113.41,113.33,13.2339]
[1644487139876,43.12951593,113.4,113.34,41.2596]
[1644487140079,43.12951593,113.4,113.34,24.3896]
[1644487140475,43.12951593,113.4,113.33,12.46]
[1644487140677,43.12951593,113.4,113.34,4.41]
[1644487140678,23.3987,113.39,113.34,4.41]
[1644487141077,23.3987,113.39,113.35,47.70873751]
[1644487141876,23.3987,113.39,113.35,13.2336]
[1644487142276,23.3987,113.39,113.36,4.41]
[1644487142479,43.12951593,113.4,113.35,13.2336]
[1644487142878,43.12951593,113.4,113.35,50.38150601]
[1644487143805,43.12951593,113.4,113.35,13.2336]
[1644487146006,43.12951593,113.4,113.36,45.03559068]
[1644487146203,24.2447,113.41,113.36,62.68009068]
[1644487146403,28.6537,113.41,113.36,58.27009068]
[1644487146603,28.6297,113.41,113.36,58.27009068]
[1644487147806,24.2207,113.41,113.36,58.27009068]
[1644487148202,58.67574811,113.41,113.36,58.27009068]
[1644487148402,24.2207,113.41,113.36,58.27009068]
[1644487148604,24.2207,113.41,113.36,60.19408481]
[1644487149406,24.2207,113.41,113.36,58.27009068]
[1644487149607,0.024,113.42,113.36,58.27009068]
[1644487149806,0.024,113.43,113.38,13.2295]
[1644487150006,0.024,113.42,113.39,4.408]
[1644487150206,0.024,113.44,113.4,2.70027486]
[1644487150412,1.28471954,113.46,113.4,2.70027486]
[1644487150613,1.28471954,113.46,113.41,43.15952345]
[1644487150806,0.024,113.46,113.41,57.79351758]
[1644487151006,0.024,113.48,113.41,61.61952345]
[1644487151212,0.024,113.46,113.41,55.61952345]
[1644487151408,0.024,113.47,113.42,13.2256]
[1644487151609,0.024,113.48,113.43,51.02329234]
[1644487151810,0.024,113.46,113.43,46.61629234]
[1644487152006,0.024,113.48,113.44,2.70027486]
[1644487152207,0.024,113.46,113.44,2.70027486]
[1644487152407,0.024,113.48,113.44,2.70027486]
[1644487152607,41.24833085,113.49,113.44,2.70027486]
[1644487152807,36.84133085,113.49,113.44,2.70027486]
[1644487153009,4.406,113.48,113.44,2.70027486]
[1644487153206,22.85105559,113.48,113.44,2.70027486]
[1644487153407,1.26071954,113.47,113.39,16.866]
[1644487153607,4.408,113.46,113.39,12.46]
[1644487153907,0.024,113.45,113.42,48.76186916]
[1644487154211,3.36412508,113.44,113.43,2.58705679]
[1644487154408,1.28471954,113.48,113.43,2.70027486]
[1644487154609,0.024,113.46,113.43,2.70027486]
[1644487154809,37.14656462,113.48,113.43,2.70027486]
[1644487155010,4.407,113.47,113.43,2.70027486]
[1644487155209,4.431,113.47,113.43,2.70027486]
[1644487155411,4.431,113.47,113.43,2.58705679]
[1644487156112,43.07422381,113.46,113.43,2.58705679]
[1644487156314,0.024,113.47,113.43,2.58705679]
[1644487156514,5.69171954,113.48,113.43,2.58705679]
[1644487156712,4.431,113.48,113.43,2.58705679]
[1644487157313,44.83695202,113.48,113.43,2.58705679]
[1644487158515,44.83695202,113.48,113.44,40.2194187]
[1644487158714,0.024,113.48,113.44,40.2194187]
[1644487158916,24.38301954,113.49,113.44,40.2194187]
[1644487159115,23.1223,113.49,113.44,40.2194187]
[1644487159516,17.1700347,113.48,113.44,40.2194187]
[1644487159915,23.1223,113.49,113.44,40.2194187]
[1644487160117,23.1223,113.49,113.44,44.6254187]
[1644487160316,23.1223,113.49,113.44,40.2194187]
[1644487160518,23.1223,113.49,113.44,44.6254187]
[1644487161518,23.1223,113.49,113.44,57.8495187]
[1644487162817,59.20393198,113.49,113.44,57.8495187]
[1644487163017,23.1223,113.49,113.44,57.8495187]
[1644487164525,23.1223,113.49,113.44,4.406]
[1644487164723,4.406,113.48,113.42,4.406]
[1644487164922,0.024,113.47,113.42,4.406]
[1644487165123,0.024,113.48,113.4,16.867]
[1644487165423,0.024,113.46,113.4,16.867]
[1644487165623,0.024,113.47,113.43,13.2251]
[1644487165823,0.024,113.45,113.44,44.70380825]
[1644487166026,0.024,113.47,113.44,47.40408311]
[1644487166222,47.50217688,113.49,113.44,47.40408311]
[1644487166623,0.024,113.49,113.44,47.40408311]
[1644487167628,78.50029448,113.5,113.44,47.40408311]
[1644487167827,0.024,113.49,113.44,47.40408311]
[1644487170054,0.024,113.49,113.44,60.62808311]
[1644487170828,46.9102657,113.49,113.44,60.62808311]
[1644487171027,51.3162657,113.49,113.44,2.70027486]
[1644487171427,54.80820678,113.49,113.44,2.58705679]
[1644487171629,52.57698524,113.49,113.39,12.46]
[1644487171828,52.57698524,113.49,113.4,4.407]
[1644487172029,52.57698524,113.49,113.41,48.06122101]
[1644487172430,65.80308524,113.49,113.41,48.06122101]
[1644487172831,1.26071954,113.48,113.41,48.06122101]
[1644487173031,44.29505689,113.47,113.41,48.06122101]
[1644487173329,44.29505689,113.47,113.4,17.6346]
[1644487173532,57.52345689,113.47,113.38,25.6898]
[1644487173832,61.01539797,113.47,113.38,13.2298]
[1644487174030,56.60839797,113.47,113.39,4.408]
[1644487174429,56.60839797,113.47,113.4,41.23595121]
[1644487174631,56.60839797,113.47,113.39,4.408]
[1644487174830,4.408,113.46,113.38,13.2298]
[1644487175030,13.2552,113.45,113.38,13.2298]
[1644487175238,13.2552,113.45,113.39,4.408]
[1644487175630,48.74540051,113.45,113.4,44.25208577]
[1644487175832,13.2552,113.45,113.4,44.25208577]
[1644487177835,51.66645488,113.45,113.4,44.25208577]
[1644487178439,51.66645488,113.45,113.38,13.231]
[1644487178637,1.26071954,113.44,113.36,24.403]
[1644487178836,13.234,113.42,113.37,4.409]
[1644487179438,24.88191954,113.44,113.38,36.19764372]
[1644487179842,47.3510604,113.43,113.38,36.19764372]
[1644487180037,60.5836604,113.43,113.38,36.19764372]
[1644487180238,24.88191954,113.44,113.38,36.19764372]
[1644487180438,23.6212,113.44,113.39,4.408]
[1644487181239,23.6212,113.44,113.4,43.42696137]
[1644487184243,23.6212,113.44,113.4,56.65626137]
[1644487184641,1.28471954,113.46,113.4,56.65626137]
[1644487185058,0.024,113.46,113.4,56.65626137]
[1644487185759,13.253,113.46,113.4,56.65626137]
[1644487186058,0.024,113.46,113.4,56.65626137]
[1644487186261,0.024,113.46,113.42,13.2254]
[1644487186460,0.024,113.46,113.41,4.408]
[1644487186461,0.024,113.47,113.43,4.407]
[1644487186662,1.26071954,113.48,113.42,6.33180938]
[1644487186861,0.024,113.46,113.42,6.33180938]
[1644487187061,1.26071954,113.48,113.43,44.24930654]
[1644487187062,0.024,113.47,113.43,44.24930654]
[1644487187259,1.26071954,113.48,113.43,44.24930654]
[1644487188661,1.26071954,113.48,113.43,57.47560654]
[1644487188860,1.26071954,113.48,113.43,44.24930654]
[1644487189061,5.66771954,113.48,113.43,44.24930654]
[1644487189260,1.26071954,113.47,113.43,44.24930654]
[1644487189463,0.024,113.47,113.43,44.24930654]
[1644487189660,5.69171954,113.48,113.43,44.24930654]
[1644487189862,5.69171954,113.48,113.43,57.47540654]
[1644487190065,1.26071954,113.48,113.43,13.2261]
[1644487190262,1.26071954,113.48,113.4,12.46]
[1644487190465,5.69171954,113.47,113.4,12.46]
[1644487190665,29.50631954,113.47,113.38,80.316]
[1644487191063,25.09931954,113.47,113.41,13.2285]
[1644487191264,25.09931954,113.47,113.42,52.40075424]
[1644487191464,35.71043911,113.46,113.42,47.99375424]
[1644487191663,35.71043911,113.46,113.4,56.5463]
[1644487191865,44.97943911,113.46,113.4,12.46]
[1644487192067,44.97943911,113.46,113.41,13.2283]
[1644487192667,49.38643911,113.46,113.41,13.2283]
[1644487192867,50.64715865,113.46,113.41,13.2283]
[1644487193365,63.87595865,113.46,113.4,13.2295]
[1644487193667,58.20823911,113.46,113.41,40.93835166]
[1644487196068,62.61523911,113.46,113.41,40.93835166]
[1644487196967,62.61523911,113.46,113.4,13.2295]
[1644487197168,58.20823911,113.46,113.4,13.2295]
[1644487198768,58.20823911,113.46,113.39,17.6378]
[1644487199166,59.46895865,113.46,113.39,17.6378]
[1644487199768,59.46895865,113.46,113.4,40.0135661]
[1644487200168,59.46895865,113.46,113.4,13.2298]
[1644487200367,59.46895865,113.46,113.39,4.407]
[1644487200567,4.408,113.45,113.39,4.407]
[1644487200869,36.97115865,113.46,113.39,4.407]
[1644487201270,36.97115865,113.46,113.4,39.78655274]
[1644487201570,25.09931954,113.47,113.41,4.408]
[1644487202270,25.09931954,113.47,113.42,1.92480938]
[1644487202489,1.28471954,113.47,113.44,40.46437875]
[1644487202672,36.20735896,113.49,113.45,2.58705679]
[1644487202872,1.26071954,113.49,113.45,2.58705679]
[1644487203775,1.26071954,113.49,113.46,47.73830545]
[1644487203977,3.36412508,113.48,113.46,47.73830545]
[1644487204175,0.44514318,113.48,113.47,2.70027486]
[1644487204375,1.28471954,113.49,113.47,2.70027486]
[1644487204576,24.97351954,113.5,113.47,7.10627486]
[1644487204776,24.94951954,113.5,113.47,7.10627486]
[1644487204980,24.94951954,113.5,113.47,2.70027486]
[1644487205477,24.94951954,113.5,113.48,40.48554212]
[1644487205679,1.28471954,113.51,113.48,40.48554212]
[1644487205878,1.26071954,113.51,113.49,0.11321807]
[1644487206078,4.17970144,113.51,113.49,2.70027486]
[1644487206281,0.44514318,113.5,113.49,2.70027486]
[1644487206482,1.26071954,113.51,113.49,2.70027486]
[1644487207184,1.26071954,113.51,113.48,40.48554212]
[1644487207483,3.36412508,113.5,113.48,40.48554212]
[1644487207881,1.26071954,113.51,113.48,40.48554212]
[1644487208482,1.26071954,113.51,113.49,2.70027486]
[1644487208682,17.7513,113.52,113.49,2.70027486]
[1644487208683,1.38471954,113.52,113.49,2.70027486]
[1644487208881,1.36071954,113.52,113.49,7.10527486]
[1644487209081,0.1,113.52,113.49,7.10527486]
[1644487209280,11.34122288,113.5,113.49,7.10527486]
[1644487209481,22.68244576,113.5,113.49,7.10527486]
[1644487210283,114.3,113.57,113.5,11.34]
[1644487210481,0.22183458,113.59,113.5,11.34]
[1644487210482,0.22183458,113.59,113.51,16.862]
[1644487210681,0.22183458,113.59,113.54,4.59797691]
[1644487210881,0.22183458,113.59,113.55,48.06659819]
[1644487211086,0.22183458,113.59,113.55,12.46]
[1644487212486,0.22183458,113.59,113.56,48.05010544]
[1644487212687,0.22183458,113.59,113.57,2.58705679]
[1644487212883,0.22183458,113.59,113.57,2.70027486]
[1644487213484,4.62383458,113.59,113.57,2.58705679]
[1644487213686,3.36412508,113.58,113.54,4.59797691]
[1644487213884,7.76612508,113.58,113.54,4.59797691]
[1644487214287,49.65148408,113.57,113.54,4.59797691]
[1644487214485,4.402,113.56,113.54,4.59797691]
[1644487214685,4.402,113.56,113.54,7.691e-05]
[1644487214886,2.9189819,113.55,113.54,7.691e-05]
[1644487215486,7.76612508,113.55,113.54,7.691e-05]
[1644487215685,9.99734662,113.55,113.54,7.691e-05]
[1644487216286,5.59534662,113.55,113.54,7.691e-05]
[1644487216487,9.99734662,113.55,113.54,7.691e-05]
[1644487216688,16.58432508,113.55,113.54,7.691e-05]
[1644487217288,18.81554662,113.55,113.54,7.691e-05]
[1644487217989,32.15154662,113.55,113.54,7.691e-05]
[1644487218989,0.01992309,113.53,113.43,25.6839]
[1644487219189,13.2256,113.51,113.43,13.2239]
[1644487219390,13.2256,113.51,113.39,12.46]
[1644487219391,4.406,113.5,113.39,12.46]
[1644487219590,15.337,113.51,113.4,4.407]
[1644487219990,10.93,113.51,113.41,12.46]
[1644487220189,35.97554706,113.5,113.42,4.406]
[1644487220392,49.20194706,113.5,113.43,44.68925112]
[1644487220590,4.406,113.49,113.43,44.68925112]
[1644487220790,34.91796522,113.48,113.43,44.68925112]
[1644487220993,44.49296522,113.48,113.43,44.68925112]
[1644487221492,57.72106522,113.48,113.41,17.6341]
[1644487221691,4.407,113.47,113.41,13.2271]
[1644487222094,57.72106522,113.48,113.42,4.407]
[1644487222498,57.72106522,113.48,113.42,39.11125341]
[1644487222696,57.72106522,113.48,113.42,4.407]
[1644487222899,57.72106522,113.48,113.41,4.407]
[1644487223094,57.72106522,113.48,113.4,16.867]
[1644487223095,4.407,113.47,113.4,16.867]
[1644487223297,48.14606522,113.48,113.4,16.867]
[1644487223498,4.407,113.47,113.4,12.46]
[1644487223697,48.14606522,113.48,113.41,50.53410307]
[1644487223900,13.2307,113.46,113.39,25.6898]
[1644487224102,13.2307,113.46,113.4,4.408]
[1644487224304,13.2307,113.46,113.37,16.868]
[1644487225002,13.2307,113.46,113.38,34.44412066]
[1644487225003,37.61843785,113.45,113.38,34.44412066]
[1644487225406,37.61843785,113.45,113.38,47.67502066]
[1644487226322,37.61843785,113.45,113.4,37.80168638]
[1644487226922,37.61843785,113.45,113.39,4.408]
[1644487227125,50.49043785,113.45,113.38,13.2309]
[1644487227926,50.49043785,113.45,113.39,45.4700903]
[1644487228323,46.08243785,113.45,113.4,4.408]
[1644487229925,50.49043785,113.45,113.4,4.408]
[1644487230325,50.49043785,113.45,113.41,35.2782708]
[1644487230527,50.49043785,113.45,113.4,4.408]
[1644487230828,46.08243785,113.45,113.4,4.408]
[1644487231527,46.08243785,113.45,113.4,47.15020431]
[1644487231729,37.61843785,113.45,113.4,47.15020431]
[1644487231927,37.61843785,113.45,113.4,42.74220431]
[1644487232826,47.34843785,113.45,113.39,4.408]
[1644487233029,64.98823785,113.45,113.37,0.024]
[1644487233228,67.21945939,113.45,113.35,0.024]
[1644487233429,67.21945939,113.45,113.37,0.024]
[1644487233628,67.21945939,113.45,113.35,0.024]
[1644487234038,24.6901,113.44,113.35,0.024]
[1644487234234,45.16846358,113.42,113.35,0.024]
[1644487234442,38.52371553,113.4,113.35,0.024]
[1644487235843,4.41,113.39,113.35,0.024]
[1644487236039,14.004,113.39,113.33,0.024]
[1644487236638,47.65754271,113.38,113.33,0.024]
[1644487236839,47.65754271,113.38,113.33,38.94199095]
[1644487237038,47.65754271,113.38,113.33,0.024]
[1644487237239,47.65754271,113.38,113.31,0.024]
[1644487237938,47.65754271,113.38,113.31,41.04089137]
[1644487238142,4.411,113.44,113.32,4.434]
[1644487238340,143.8417,113.49,113.33,12.484]
[1644487238542,4.408,113.48,113.34,0.024]
[1644487238739,12.46,113.47,113.34,4.432]
[1644487238941,4.408,113.46,113.35,0.024]
[1644487239141,49.75533974,113.45,113.35,0.024]
[1644487239341,4.409,113.44,113.35,0.024]
[1644487239541,28.9178,113.44,113.35,0.024]
[1644487239748,43.60902154,113.44,113.33,0.024]
[1644487239941,2.23122154,113.43,113.33,0.024]
[1644487240142,4.409,113.42,113.33,0.024]
[1644487240344,76.72681525,113.42,113.33,0.024]
[1644487240545,2.23122154,113.41,113.33,0.024]
[1644487240749,16.87,113.4,113.33,0.024]
[1644487241145,2.23122154,113.39,113.33,0.024]
[1644487241445,51.73997524,113.38,113.33,0.024]
[1644487241648,45.44861784,113.36,113.33,0.024]
[1644487241845,7.77412508,113.35,113.33,0.024]
[1644487242046,37.99807231,113.34,113.29,0.024]
[1644487243049,51.24277231,113.34,113.28,0.024]
[1644487243450,55.65477231,113.34,113.26,0.024]
[1644487243651,55.65477231,113.34,113.27,4.413]
[1644487244051,55.65477231,113.34,113.28,0.024]
[1644487246679,68.11477231,113.34,113.28,0.024]
[1644487247085,68.11477231,113.34,113.27,4.413]
[1644487249487,68.11477231,113.34,113.22,40.0011281]
[1644487249687,13.2511,113.3,113.22,40.0011281]
[1644487249888,47.12484237,113.28,113.2,17.663]
[1644487250088,47.12484237,113.28,113.2,23.663]
[1644487250892,47.12484237,113.28,113.2,63.56173835]
[1644487251088,60.37624237,113.28,113.2,23.663]
[1644487251289,72.07924237,113.28,113.2,23.663]
[1644487251689,72.07924237,113.28,113.2,4.412]
[1644487252190,72.07924237,113.28,113.2,36.1216213]
[1644487252692,72.07924237,113.28,113.19,17.6681]
[1644487252991,72.07924237,113.28,113.19,23.9181]
[1644487253192,72.07924237,113.28,113.19,17.9181]
[1644487253592,60.37624237,113.28,113.2,44.72730642]
[1644487253790,4.415,113.27,113.2,44.72730642]
[1644487253992,47.59707772,113.26,113.2,44.72730642]
[1644487254794,47.59707772,113.26,113.2,44.97730642]
[1644487254993,47.59707772,113.26,113.2,58.22930642]
[1644487257093,27.2238,113.3,113.2,58.22930642]
[1644487257294,22.8088,113.3,113.21,16.875]
[1644487257503,22.8088,113.3,113.23,13.2473]
[1644487257896,22.8088,113.3,113.24,4.414]
[1644487258095,62.45626194,113.3,113.25,41.941205]
[1644487258997,22.8088,113.3,113.25,41.941205]
[1644487259397,4.414,113.32,113.25,43.86116755]
[1644487259597,4.414,113.32,113.25,41.941205]
[1644487259796,4.414,113.32,113.23,14.37996255]
[1644487259996,4.414,113.32,113.23,12.46]
[1644487260698,47.18894893,113.31,113.24,45.81509657]
[1644487261798,47.18894893,113.31,113.23,13.2475]
[1644487261999,47.18894893,113.31,113.24,4.414]
[1644487262198,4.414,113.3,113.23,13.2475]
[1644487262599,42.48234922,113.29,113.24,0.024]
[1644487266405,42.48234922,113.29,113.25,45.98137001]
[1644487266702,42.48234922,113.29,113.25,50.41937001]
[1644487266902,42.48234922,113.29,113.25,46.00537001]
[1644487267503,42.48234922,113.29,113.25,59.25137001]
[1644487267704,23.974,113.33,113.25,59.25137001]
[1644487267905,23.974,113.33,113.26,4.437]
[1644487268511,23.974,113.33,113.26,17.6819]
[1644487268706,23.974,113.33,113.27,39.7194539]
[1644487268910,43.52310331,113.34,113.28,4.437]
[1644487269111,43.52310331,113.34,113.29,41.34447198]
[1644487269310,43.52310331,113.34,113.29,0.024]
[1644487269512,43.52310331,113.34,113.28,0.024]
[1644487270313,43.52310331,113.34,113.28,44.35891787]
[1644487270511,43.52310331,113.34,113.29,0.024]
[1644487270713,43.52310331,113.34,113.29,13.2655]
[1644487271114,4.412,113.36,113.3,45.23608325]
[1644487271329,4.41,113.38,113.31,0.024]
[1644487272230,38.43595975,113.37,113.31,13.263]
[1644487272435,38.43595975,113.37,113.32,0.024]
[1644487272832,38.43595975,113.37,113.32,40.60316896]
[1644487273233,38.43595975,113.37,113.32,0.024]
[1644487276740,4.41,113.36,113.3,13.2649]
[1644487276937,4.41,113.36,113.31,0.024]
[1644487277639,4.41,113.36,113.31,13.2638]
[1644487277839,46.0474106,113.35,113.31,13.2398]
[1644487278139,46.0474106,113.35,113.31,13.2638]
[1644487278439,46.0474106,113.35,113.31,60.22332657]
[1644487280740,4.41,113.37,113.31,60.22332657]
[1644487280940,24.0183,113.38,113.31,60.24732657]
[1644487281139,28.4283,113.38,113.31,60.24732657]
[1644487281539,41.6686,113.38,113.31,13.2638]
[1644487282043,37.2586,113.38,113.31,13.2638]
[1644487282241,24.0183,113.38,113.31,13.2638]
[1644487282542,43.69428537,113.37,113.32,35.40022519]
[1644487282741,43.69428537,113.37,113.32,53.04862519]
[1644487284042,43.69428537,113.37,113.32,17.6484]
[1644487285143,43.69428537,113.37,113.32,61.11553537]
[1644487285846,43.69428537,113.37,113.32,17.6484]
[1644487286345,43.69428537,113.37,113.32,4.41]
[1644487286543,48.10428537,113.37,113.32,4.41]
[1644487286944,48.10428537,113.37,113.32,46.80599746]
[1644487287145,4.41,113.37,113.32,46.80599746]
[1644487287745,24.0183,113.38,113.32,46.80599746]
[1644487287944,24.0183,113.38,113.32,42.39599746]
[1644487288145,67.11142267,113.38,113.32,42.39599746]
[1644487288746,67.11142267,113.38,113.32,55.63499746]
[1644487289147,71.52142267,113.38,113.32,55.63499746]
[1644487290349,4.41,113.42,113.32,55.63499746]
[1644487290552,29.1828,113.42,113.33,14.37996255]
[1644487290750,24.7728,113.42,113.35,13.2334]
[1644487290951,24.7728,113.42,113.36,4.409]
[1644487291357,44.38015526,113.41,113.36,39.71133013]
[1644487291558,44.38015526,113.41,113.35,4.409]
[1644487291954,44.38015526,113.41,113.36,13.2336]
[1644487292560,44.38015526,113.41,113.35,4.409]
[1644487292757,38.61763749,113.39,113.33,53.79896876]
[1644487292954,38.61763749,113.39,113.34,13.2366]
[1644487293655,38.61763749,113.39,113.35,36.67845688]
[1644487294454,38.61763749,113.39,113.35,49.91425688]
[1644487297157,24.5271,113.41,113.35,49.91425688]
[1644487299757,24.5271,113.41,113.35,50.16425688]
[1644487300262,24.5271,113.41,113.36,4.409]
[1644487300458,24.5271,113.41,113.37,57.9190868]
[1644487301062,24.7728,113.42,113.37,57.9190868]
[1644487301660,42.66603068,113.44,113.37,57.9190868]
[1644487302564,51.48993068,113.44,113.37,57.9190868]
[1644487302767,4.408,113.43,113.37,57.9190868]
[1644487304064,4.409,113.46,113.37,57.9190868]
[1644487304264,13.2321,113.45,113.37,57.9190868]
[1644487304465,4.409,113.46,113.38,4.408]
[1644487304666,4.409,113.46,113.39,13.2309]
[1644487304865,48.3567,113.47,113.39,13.2309]
[1644487304866,52.7647,113.47,113.39,13.2309]
[1644487305087,52.7647,113.47,113.4,45.57729154]
[1644487305270,65.9947,113.47,113.4,45.57729154]
[1644487305665,34.65239014,113.46,113.4,45.57729154]
[1644487306070,36.88361168,113.46,113.4,45.57729154]
[1644487306465,34.65239014,113.46,113.4,45.57729154]
[1644487306674,47.88359014,113.46,113.4,45.57729154]
[1644487306871,47.88359014,113.46,113.4,58.80719154]
[1644487307969,13.2312,113.46,113.4,58.80719154]
[1644487308167,61.5863,113.47,113.4,58.80719154]
[1644487308968,102.87331555,113.47,113.4,58.80719154]
[1644487309167,61.5863,113.47,113.4,58.80719154]
[1644487310068,4.407,113.46,113.4,58.80719154]
[1644487310272,54.60498017,113.46,113.4,45.57729154]
[1644487311569,41.37438017,113.46,113.4,58.80739154]
[1644487317175,41.37438017,113.46,113.4,13.2301]
[1644487317573,54.60438017,113.46,113.4,13.2301]
[1644487317779,4.408,113.45,113.4,13.2301]
[1644487317975,4.408,113.45,113.38,13.2324]
[1644487318175,41.25490377,113.44,113.39,41.95029491]
[1644487319177,54.48720377,113.44,113.39,41.95029491]
[1644487319575,54.48720377,113.44,113.38,13.2324]
[1644487321877,54.48720377,113.44,113.39,35.29482482]
[1644487323179,41.25490377,113.44,113.39,48.52632482]
[1644487323381,4.408,113.46,113.39,48.52632482]
[1644487323579,52.7647,113.47,113.39,48.52632482]
[1644487324480,44.18523229,113.46,113.39,48.52632482]
[1644487324882,57.41533229,113.46,113.39,48.52632482]
[1644487326782,4.408,113.45,113.39,48.52632482]
[1644487326984,51.75687866,113.44,113.39,35.29482482]
[1644487327185,13.2324,113.44,113.39,35.29482482]
[1644487327384,4.408,113.46,113.39,35.29482482]
[1644487327602,48.3567,113.47,113.39,35.29482482]
[1644487328303,41.87126537,113.46,113.39,35.29482482]
[1644487328704,55.10116537,113.46,113.39,48.52652482]
[1644487329610,59.50916537,113.46,113.39,48.52652482]
[1644487330505,51.334534,113.44,113.39,48.52652482]
[1644487330707,51.334534,113.44,113.39,13.2317]
[1644487331206,51.334534,113.44,113.38,13.2326]
[1644487331408,57.0021111,113.44,113.38,13.2326]
[1644487331708,57.0021111,113.44,113.36,28.6268]
[1644487331709,52.5941111,113.44,113.36,28.3768]
[1644487332007,52.5941111,113.44,113.36,77.22680536]
[1644487332712,52.5941111,113.44,113.37,13.2336]
[1644487332908,57.0021111,113.44,113.37,13.2336]
[1644487333409,80.5021111,113.44,113.37,13.2336]
[1644487333611,80.5021111,113.44,113.36,4.408]
[1644487333612,1.2595771,113.43,113.36,4.408]
[1644487333808,81.47375554,113.44,113.36,4.408]
[1644487333809,13.2368,113.41,113.36,4.408]
[1644487334009,13.2368,113.41,113.35,13.2359]
[1644487334209,4.409,113.4,113.3,1.26890451]
[1644487334408,37.06557597,113.39,113.31,44.18494217]
[1644487334609,4.41,113.38,113.31,44.18494217]
[1644487334812,40.83828099,113.37,113.31,44.18494217]
[1644487335810,54.07908099,113.37,113.31,0.024]
[1644487336011,54.07908099,113.37,113.3,0.024]
[1644487336611,56.31030253,113.37,113.3,0.024]
[1644487336812,28.8629,113.36,113.28,0.024]
[1644487337013,13.2446,113.34,113.28,0.024]
[1644487337313,34.78234693,113.33,113.28,4.436]
[1644487337812,34.78234693,113.33,113.28,0.024]
[1644487338011,34.78234693,113.33,113.27,53.99108835]
[1644487338212,34.78234693,113.33,113.29,41.28357709]
[1644487338412,48.02704693,113.33,113.29,41.28357709]
[1644487338613,34.78234693,113.33,113.28,4.437]
[1644487339113,34.78234693,113.33,113.28,0.024]
[1644487339313,48.02754693,113.33,113.27,0.024]
[1644487339514,48.02754693,113.33,113.25,0.024]
[1644487339712,52.44054693,113.33,113.25,35.29549517]
[1644487339913,52.44054693,113.33,113.26,0.024]
[1644487341013,24.6147,113.32,113.25,0.024]
[1644487341215,13.2507,113.3,113.23,0.024]
[1644487341417,4.414,113.29,113.23,0.024]
[1644487341713,4.414,113.29,113.23,46.34153173]
[1644487341714,46.3729247,113.29,113.23,46.34153173]
[1644487343722,59.6231247,113.29,113.23,46.34153173]
[1644487343922,59.6231247,113.29,113.24,4.414]
[1644487344121,59.6231247,113.29,113.24,0.024]
[1644487344621,59.6231247,113.29,113.22,0.024]
[1644487346120,46.3729247,113.29,113.22,0.024]
[1644487346523,46.3729247,113.29,113.23,43.60257029]
[1644487346724,46.3729247,113.29,113.23,43.62657029]
[1644487346923,46.3729247,113.29,113.23,43.87657029]
[1644487347425,46.3729247,113.29,113.23,43.62657029]
[1644487347624,46.3729247,113.29,113.23,43.87657029]
[1644487348226,13.2487,113.3,113.23,43.87657029]
[1644487348425,13.2475,113.31,113.24,0.024]
[1644487348626,49.471,113.32,113.24,0.024]
[1644487349323,40.13026239,113.32,113.24,0.024]
[1644487349523,40.13026239,113.32,113.25,12.46]
[1644487349725,40.13026239,113.32,113.26,49.56941673]
[1644487349924,27.9821,113.35,113.26,49.56941673]
[1644487350127,27.9821,113.35,113.26,49.81941673]
[1644487350724,41.2258,113.35,113.26,63.06311673]
[1644487350926,39.17182306,113.34,113.26,63.06311673]
[1644487351327,17.6567,113.35,113.26,63.06311673]
[1644487351525,4.413,113.4,113.27,14.38071863]
[1644487351727,4.41,113.43,113.28,0.024]
[1644487351926,24.3892,113.42,113.29,12.46]
[1644487352124,4.41,113.41,113.29,14.40471863]
[1644487352324,47.94494525,113.4,113.3,39.18476225]
[1644487352525,47.94494525,113.4,113.31,12.46]
[1644487352725,36.22123706,113.38,113.31,12.46]
[1644487352926,36.22123706,113.38,113.32,40.2577569]